bitfinex/quotes_BTCUSD_20250314
["timestamp","ask_amount","ask_price","bid_price","bid_amount"]
[1741960470812,6e-07,83949.0,83948.0,0.630454]
[1741960471015,6e-07,83949.0,83948.0,0.69999485]
[1741960471503,8e-07,83959.0,83958.0,0.64606485]
[1741960472152,0.01868029,83984.0,83983.0,0.25005]
[1741960472363,0.0008,83989.0,83985.0,0.250043]
[1741960472748,0.0008,83989.0,83985.0,0.397523]
[1741960473182,0.011906,83987.0,83985.0,0.1474]
[1741960473512,0.01867814,83992.0,83987.0,0.011906]
[1741960473724,0.238123,83991.0,83987.0,0.250037]
[1741960473906,0.238123,83991.0,83988.0,0.14728]
[1741960474131,0.238124,83990.0,83988.0,0.14728]
[1741960474335,0.01867814,83992.0,83989.0,0.238126]
[1741960474556,0.01867814,83992.0,83991.0,0.011906]
[1741960475921,0.06298339,84000.0,83999.0,0.250002]
[1741960477530,0.06298339,84000.0,83999.0,0.253002]
[1741960477873,0.06298339,84000.0,83999.0,0.250002]
[1741960478192,0.06298339,84000.0,83999.0,0.26454285]
[1741960478395,8.9e-07,84006.0,84005.0,0.249985]
[1741960478600,8e-05,84039.0,84028.0,0.372115]
[1741960478804,0.237997,84035.0,84028.0,0.325715]
[1741960479046,0.249891,84037.0,84028.0,0.325715]
[1741960479246,8e-05,84039.0,84028.0,0.473595]
[1741960479824,8e-05,84039.0,84028.0,0.325715]
[1741960480025,8e-05,84039.0,84028.0,0.473515]
[1741960480231,8e-05,84039.0,84028.0,0.328715]
[1741960480466,0.00234728,84058.0,84045.0,0.011898]
[1741960480665,0.00234728,84058.0,84057.0,0.249829]
[1741960480865,0.00234728,84058.0,84057.0,0.295529]
[1741960481025,0.07234728,84058.0,84056.0,0.75644]
[1741960481241,0.07234728,84058.0,84049.0,0.011897]
[1741960481443,0.011897,84051.0,84046.0,0.23114]
[1741960481645,0.011898,84043.0,84034.0,0.0812]
[1741960481862,0.011899,84036.0,84035.0,0.14864]
[1741960482067,0.011898,84041.0,84035.0,0.14864]
[1741960482068,0.237975,84043.0,84037.0,0.011899]
[1741960482272,0.011898,84047.0,84040.0,0.237981]
[1741960482492,0.011897,84050.0,84043.0,0.237973]
[1741960482694,0.01866235,84053.0,84035.0,0.14864]
[1741960482695,0.01866235,84053.0,84045.0,0.011898]
[1741960482904,0.01866235,84053.0,84047.0,0.011898]
[1741960483108,0.01866235,84053.0,84045.0,0.011898]
[1741960483109,0.011899,84038.0,84027.0,0.0119]
[1741960483307,0.011899,84038.0,84008.0,0.12137707]
[1741960483308,0.0119,84029.0,84022.0,0.14876]
[1741960483508,0.238023,84026.0,84022.0,0.14876]
[1741960483806,0.03056644,84030.0,84021.0,0.314435]
[1741960484007,0.01866644,84030.0,84029.0,0.238013]
[1741960484218,0.011897,84048.0,84039.0,0.237983]
[1741960484412,0.011897,84051.0,84043.0,0.237971]
[1741960484613,0.237947,84052.0,84042.0,0.249873]
[1741960484871,0.011897,84053.0,84045.0,0.011898]
[1741960485091,0.011898,84044.0,84026.0,0.011901]
[1741960485215,0.011899,84040.0,84033.0,0.0119]
[1741960485415,0.237975,84043.0,84034.0,0.011899]
[1741960485641,0.249891,84037.0,84031.0,0.238006]
[1741960485951,0.249891,84037.0,84020.0,0.238036]
[1741960485952,0.3,84043.0,84038.0,0.237986]
[1741960486160,0.3,84043.0,84036.0,0.249892]
[1741960486364,0.249882,84040.0,84030.0,0.249908]
[1741960486664,0.011899,84034.0,84027.0,0.249916]
[1741960486863,0.3,84035.0,84031.0,0.238005]
[1741960487088,0.049,84054.0,84034.0,0.011899]
[1741960487293,0.3,84042.0,84035.0,0.011899]
[1741960487470,0.3,84042.0,84038.0,0.237985]
[1741960487671,0.249872,84043.0,84034.0,0.011899]
[1741960487672,0.24027928,84058.0,84049.0,0.011897]
[1741960487851,0.00234728,84058.0,84052.0,0.249844]
[1741960488053,0.00234728,84058.0,84052.0,0.399484]
[1741960490569,0.00234728,84058.0,84052.0,0.403484]
[1741960490781,0.00234728,84058.0,84052.0,0.399484]
[1741960491145,0.00234728,84058.0,84052.0,0.405484]
[1741960491689,0.00234728,84058.0,84052.0,0.405644]
[1741960492114,4.8e-07,84058.0,84057.0,0.249829]
[1741960492322,4.8e-07,84058.0,84057.0,2.2496395]
[1741960492520,0.0001695,84076.0,84057.0,2.2496395]
[1741960492521,5.7e-07,84076.0,84075.0,0.237882]
[1741960492725,5.7e-07,84076.0,84075.0,0.249776]
[1741960492932,5.7e-07,84076.0,84075.0,0.399656]
[1741960493389,5.7e-07,84076.0,84075.0,0.249776]
[1741960493639,0.23787,84080.0,84075.0,0.399536]
[1741960493949,0.3,84082.0,84062.0,0.011895]
[1741960494107,0.24978,84074.0,84064.0,0.011895]
[1741960494315,0.011894,84074.0,84065.0,0.011895]
[1741960494514,0.011894,84074.0,84059.0,0.14972]
[1741960494515,0.23792,84063.0,84059.0,0.14972]
[1741960494692,0.249821,84060.0,84059.0,0.14972]
[1741960494877,0.23792,84062.0,84047.0,0.088798]
[1741960494878,0.011897,84052.0,84051.0,0.14968]
[1741960495083,0.011895,84062.0,84056.0,0.011896]
[1741960495354,0.011896,84059.0,84053.0,0.237945]
[1741960495647,0.011896,84059.0,84049.0,0.237956]
[1741960495853,0.237962,84047.0,84037.0,0.058199]
[1741960496058,0.249877,84041.0,84024.0,0.0766]
[1741960496229,0.249877,84041.0,84028.0,0.14984]
[1741960496634,0.249877,84041.0,84028.0,0.387853]
[1741960496872,0.011897,84051.0,84042.0,0.011898]
[1741960497169,0.237975,84043.0,84038.0,0.237986]
[1741960497363,0.011898,84041.0,84032.0,0.15016]
[1741960497859,0.011898,84041.0,84040.0,0.106]
[1741960498080,0.237978,84042.0,84040.0,0.106]
[1741960498364,0.249876,84042.0,84040.0,0.106]
[1741960498580,0.249874,84043.0,84040.0,0.106]
[1741960498868,0.237973,84043.0,84040.0,0.106]
[1741960499171,0.249874,84042.0,84040.0,0.106]
[1741960499412,0.011898,84044.0,84040.0,0.106]
[1741960499613,0.249875,84042.0,84040.0,0.084]
[1741960499849,0.237962,84047.0,84040.0,0.084]
[1741960500021,0.3,84061.0,84048.0,0.249856]
[1741960500022,0.011896,84060.0,84048.0,0.249856]
[1741960500273,0.3,84061.0,84048.0,0.249856]
[1741960500484,0.011895,84066.0,84061.0,0.011896]
[1741960500730,0.018662,84066.0,84059.0,0.237926]
[1741960500899,0.018662,84066.0,84063.0,0.011895]
[1741960501107,0.011896,84058.0,84021.0,0.05]
[1741960501317,0.237939,84055.0,84050.0,0.237951]
[1741960501519,0.330557,84066.0,84054.0,0.011897]
[1741960501733,0.237922,84061.0,84055.0,0.011896]
[1741960501943,0.011894,84074.0,84063.0,0.011895]
[1741960502148,0.011895,84067.0,84061.0,0.15248]
[1741960502553,0.249792,84070.0,84066.0,0.237907]
[1741960502757,0.249792,84070.0,84061.0,0.15248]
[1741960502758,0.011893,84080.0,84070.0,0.011894]
[1741960502965,0.25655606,84070.0,84067.0,0.237904]
[1741960503192,0.237918,84063.0,84061.0,0.15048]
[1741960503415,0.011897,84051.0,84043.0,0.6551805]
[1741960503621,0.011894,84069.0,84055.0,0.011896]
[1741960503831,0.011897,84049.0,84044.0,0.237969]
[1741960504039,0.237962,84047.0,84040.0,0.078]
[1741960504249,0.0457,84067.0,84046.0,0.011898]
[1741960504250,0.011897,84054.0,84046.0,0.011898]
[1741960504462,0.249877,84041.0,84040.0,0.078]
[1741960504677,0.237976,84042.0,84040.0,0.078]
[1741960504877,0.237973,84044.0,84043.0,0.006]
[1741960505081,0.011898,84044.0,84043.0,0.006]
[1741960505287,0.237978,84042.0,84040.0,0.078]
[1741960505493,0.011898,84041.0,84040.0,0.078]
[1741960506111,0.299876,84042.0,84040.0,0.078]
[1741960506112,0.05,84042.0,84040.0,0.078]
[1741960506318,0.011898,84041.0,84040.0,0.078]
[1741960506523,0.05,84042.0,84040.0,0.078]
[1741960506723,0.011898,84041.0,84040.0,0.079]
[1741960507077,0.287978,84042.0,84040.0,0.078]
[1741960507436,0.011898,84041.0,84040.0,0.079]
[1741960507867,0.011898,84041.0,84040.0,0.078]
[1741960508083,0.011898,84041.0,84040.0,0.08]
[1741960508345,0.30664308,84042.0,84040.0,0.08]
[1741960508546,0.011898,84041.0,84040.0,0.078]
[1741960508859,0.249877,84041.0,84040.0,0.078]
[1741960509458,0.237979,84041.0,84040.0,0.078]
[1741960509927,0.249877,84041.0,84040.0,0.079]
[1741960510227,4e-05,84041.0,84040.0,0.078]
[1741960510425,0.249917,84041.0,84040.0,0.078]
[1741960510667,0.249917,84041.0,84040.0,0.079]
[1741960510907,4e-05,84041.0,84040.0,0.078]
[1741960511321,4e-05,84041.0,84040.0,0.079]
[1741960511322,0.249917,84041.0,84040.0,0.079]
[1741960511572,0.249917,84041.0,84040.0,0.078]
[1741960512027,4e-05,84041.0,84040.0,0.079]
[1741960512226,0.249917,84041.0,84040.0,0.0793382]
[1741960512547,0.238019,84041.0,84040.0,0.0793382]
[1741960512809,0.249917,84041.0,84040.0,0.0793382]
[1741960513149,4e-05,84041.0,84040.0,0.0783382]
[1741960513370,0.238019,84041.0,84040.0,0.0783382]
[1741960513576,0.238019,84041.0,84040.0,0.0813382]
[1741960513860,0.249917,84041.0,84040.0,0.0783382]
[1741960513991,4e-05,84041.0,84040.0,0.0803382]
[1741960514376,0.238019,84041.0,84040.0,0.0783382]
[1741960514577,0.249917,84041.0,84040.0,0.0803382]
[1741960514986,4e-05,84041.0,84040.0,0.0783382]
[1741960515231,4e-05,84041.0,84040.0,0.3282182]
[1741960515994,0.05,84042.0,84041.0,0.337939]
[1741960516197,0.05,84042.0,84041.0,0.349837]
[1741960516624,0.05,84042.0,84041.0,0.337939]
[1741960516958,0.05,84042.0,84041.0,0.349837]
[1741960517140,0.05,84042.0,84041.0,0.337939]
[1741960517316,0.05,84042.0,84041.0,0.349837]
[1741960518486,0.05,84042.0,84041.0,0.351837]
[1741960519288,0.05,84042.0,84041.0,0.427137]
[1741960519490,0.01188178,84084.0,84079.0,0.23787]
[1741960519695,4.162e-05,84090.0,84083.0,0.011893]
[1741960519897,4.162e-05,84090.0,84084.0,0.011892]
[1741960520100,0.011892,84085.0,84078.0,0.237873]
[1741960520308,0.011892,84086.0,84076.0,0.237879]
[1741960520453,0.249747,84085.0,84079.0,0.237869]
[1741960520636,0.011892,84084.0,84075.0,0.011894]
[1741960520843,4.162e-05,84090.0,84081.0,0.011893]
[1741960521213,4.162e-05,84090.0,84089.0,0.011892]
[1741960522395,4.162e-05,84090.0,84089.0,0.01308108]
[1741960522716,4.162e-05,84090.0,84089.0,0.09028108]
[1741960523130,4.162e-05,84090.0,84089.0,0.089092]
[1741960523331,4.162e-05,84090.0,84089.0,0.09028105]
[1741960523878,4.162e-05,84090.0,84089.0,0.402975]
[1741960524106,4.162e-05,84090.0,84089.0,0.408975]
[1741960524311,4.162e-05,84090.0,84089.0,0.402975]
[1741960524653,4.162e-05,84090.0,84089.0,0.408975]
[1741960525008,4.162e-05,84090.0,84089.0,0.402975]
[1741960525635,0.24977362,84090.0,84089.0,0.15324]
[1741960525835,0.00021072,84090.0,84089.0,0.249735]
[1741960526239,0.00021072,84090.0,84088.0,0.011892]
[1741960526538,0.00021072,84090.0,84089.0,0.017892]
[1741960526748,0.00021072,84090.0,84088.0,0.245627]
[1741960526967,0.00021072,84090.0,84089.0,0.011892]
[1741960527705,0.00021072,84090.0,84088.0,0.245627]
[1741960527965,0.00021072,84090.0,84089.0,0.015892]
[1741960528138,0.00021072,84090.0,84089.0,0.011892]
[1741960528374,0.00021072,84090.0,84088.0,0.245627]
[1741960528375,0.01210272,84090.0,84075.0,0.0818]
[1741960528579,0.3,84089.0,84050.0,0.0818]
[1741960528782,0.3,84089.0,84042.0,0.16264]
[1741960528783,0.249811,84063.0,84042.0,0.16264]
[1741960528986,0.249811,84063.0,84062.0,0.10554803]
[1741960529194,0.6485434,84063.0,84062.0,0.10224803]
[1741960529399,0.6485434,84063.0,84041.0,0.1002982]
[1741960529400,0.011897,84054.0,84050.0,0.10224803]
[1741960529614,0.011896,84055.0,84050.0,0.10224803]
[1741960529820,0.02421949,84082.0,84067.0,0.237903]
[1741960530035,0.011896,84060.0,84052.0,0.237945]
[1741960530242,0.249823,84060.0,84051.0,0.011897]
[1741960530454,0.237928,84059.0,84053.0,0.237942]
[1741960530673,0.249826,84059.0,84052.0,0.011897]
[1741960530883,0.011895,84065.0,84059.0,0.237928]
[1741960531035,0.011896,84061.0,84055.0,0.011896]
[1741960531236,0.23793,84058.0,84052.0,0.011897]
[1741960531443,0.011897,84051.0,84024.0,0.75552]
[1741960531604,0.011897,84051.0,84034.0,0.011899]
[1741960531803,0.0186621,84060.0,84050.0,0.11414503]
[1741960532002,0.237932,84058.0,84052.0,0.249843]
[1741960532208,0.0186621,84060.0,84056.0,0.237934]
[1741960532416,0.0186621,84060.0,84058.0,0.237928]
[1741960532613,0.0186621,84060.0,84056.0,0.235234]
[1741960533059,0.2565891,84060.0,84055.0,0.249832]
[1741960533258,0.249826,84059.0,84053.0,0.237942]
[1741960533517,0.011894,84073.0,84066.0,0.011895]
[1741960533893,0.01866055,84076.0,84075.0,0.011894]
[1741960534091,0.01866055,84076.0,84075.0,0.237882]
[1741960534353,0.237856,84085.0,84078.0,0.011893]
[1741960534556,0.00021072,84090.0,84088.0,0.237843]
[1741960534707,0.00021072,84090.0,84089.0,0.011892]
[1741960535259,0.00021072,84090.0,84088.0,0.237843]
[1741960535529,0.00021072,84090.0,84088.0,0.237844]
[1741960535769,0.00021072,84090.0,84087.0,0.249737]
[1741960535936,0.00021072,84090.0,84089.0,0.011892]
[1741960536200,0.00021072,84090.0,84086.0,0.237845]
[1741960536539,0.23787,84080.0,84078.0,0.003]
[1741960536753,0.237847,84088.0,84078.0,0.003]
[1741960536954,0.011892,84084.0,84079.0,0.237871]
[1741960537178,0.011893,84082.0,84072.0,0.011894]
[1741960537355,0.237864,84082.0,84071.0,0.412666]
[1741960537580,0.237864,84082.0,84043.0,0.475944]
[1741960537581,0.23792,84062.0,84046.0,0.0499]
[1741960537782,0.01865633,84083.0,84046.0,0.0499]
[1741960537783,0.237926,84060.0,84058.0,0.2442]
[1741960537942,0.011897,84050.0,84046.0,0.0499]
[1741960538143,0.011897,84050.0,84035.0,0.237994]
[1741960538144,0.249874,84042.0,84032.0,0.0119]
[1741960538369,0.249874,84042.0,84031.0,0.1231]
[1741960538370,0.237963,84047.0,84041.0,0.0994982]
[1741960538578,0.249861,84047.0,84041.0,0.0994982]
[1741960538804,0.01866332,84046.0,84042.0,0.237975]
[1741960539005,0.01866332,84046.0,84041.0,0.1113962]
[1741960539006,0.237968,84045.0,84041.0,0.3374742]
[1741960539229,0.011898,84045.0,84041.0,0.0994982]
[1741960539429,0.249873,84043.0,84041.0,0.0994982]
[1741960539605,0.237974,84043.0,84041.0,0.0994982]
[1741960539844,0.011898,84042.0,84041.0,0.0994982]
[1741960540044,0.011898,84042.0,84041.0,0.0993982]
[1741960540222,0.011898,84042.0,84041.0,0.0967982]
[1741960540425,0.01866332,84046.0,84042.0,0.011898]
[1741960540680,0.011898,84042.0,84041.0,0.0967982]
[1741960541498,0.01866332,84046.0,84043.0,0.23797]
[1741960541695,0.01866332,84046.0,84041.0,0.1086962]
[1741960541696,0.237973,84044.0,84041.0,0.0977982]
[1741960541907,0.01866332,84046.0,84041.0,0.0977982]
[1741960542104,0.011898,84042.0,84041.0,0.0967982]
[1741960542303,0.237973,84044.0,84041.0,0.0977982]
[1741960542561,0.237968,84045.0,84041.0,0.1096962]
[1741960542730,0.249872,84043.0,84041.0,0.0977982]
[1741960543171,0.01866332,84046.0,84045.0,0.011898]
[1741960544036,0.011896,84058.0,84050.0,0.249849]
[1741960544209,0.011896,84058.0,84053.0,0.011897]
[1741960544210,0.237934,84057.0,84053.0,0.011897]
[1741960544439,0.249824,84059.0,84053.0,0.011897]
[1741960544656,0.249824,84059.0,84050.0,0.249849]
[1741960544657,0.237936,84056.0,84050.0,0.249849]
[1741960544862,0.249829,84058.0,84047.0,0.011898]
[1741960544863,0.237941,84055.0,84051.0,0.23795]
[1741960545069,0.237941,84055.0,84052.0,0.237947]
[1741960545222,0.011896,84061.0,84049.0,0.011897]
[1741960545223,0.0462,84089.0,84067.0,0.011895]
[1741960545425,0.011895,84065.0,84056.0,0.011896]
[1741960545603,0.011894,84071.0,84065.0,0.011895]
[1741960545809,0.237901,84069.0,84064.0,0.237911]
[1741960545995,0.237897,84070.0,84063.0,0.22781]
[1741960546205,0.011895,84064.0,84057.0,0.249829]
[1741960546417,0.249807,84065.0,84061.0,0.237921]
[1741960546642,0.011896,84059.0,84046.0,0.059898]
[1741960546842,0.011895,84064.0,84060.0,0.237924]
[1741960547202,0.011896,84061.0,84053.0,0.011897]
[1741960547408,0.011895,84067.0,84059.0,0.237928]
[1741960547596,0.011895,84067.0,84057.0,0.011896]
[1741960547597,0.014895,84064.0,84058.0,0.23793]
[1741960547803,0.014895,84064.0,84054.0,0.011897]
[1741960547804,0.011895,84063.0,84056.0,0.237935]
[1741960548007,0.011895,84063.0,84052.0,0.011897]
[1741960548149,0.237934,84057.0,84054.0,0.237941]
[1741960548352,0.249824,84059.0,84054.0,0.237941]
[1741960548558,0.011895,84064.0,84057.0,0.011896]
[1741960548797,0.237918,84063.0,84057.0,0.249829]
[1741960548974,0.237922,84061.0,84055.0,0.249835]
[1741960549326,0.249818,84061.0,84060.0,0.001]
[1741960549860,0.26847938,84061.0,84060.0,0.001]
[1741960550070,0.56847938,84061.0,84060.0,0.001]
[1741960550278,0.249874,84042.0,84036.0,0.237992]
[1741960550476,0.237955,84050.0,84036.0,0.237992]
[1741960550477,0.3,84058.0,84043.0,0.011898]
[1741960550703,0.011897,84049.0,84044.0,0.23797]
[1741960550918,0.011897,84049.0,84041.0,0.0967982]
[1741960550919,0.011897,84048.0,84041.0,0.0967982]
[1741960551124,0.011898,84047.0,84041.0,0.0967982]
[1741960551302,0.249869,84044.0,84041.0,0.0967982]
[1741960551502,0.237975,84043.0,84041.0,0.0967982]
[1741960551707,0.011898,84042.0,84041.0,0.0967982]
[1741960552540,0.237976,84042.0,84041.0,0.0967982]
[1741960552812,0.07801792,84042.0,83997.0,0.0812]
[1741960552978,0.011899,84035.0,84029.0,0.0119]
[1741960553176,0.23801,84030.0,84020.0,0.011901]
[1741960553390,0.23801,84031.0,84018.0,0.238043]
[1741960553729,0.356935,84049.0,84026.0,0.089501]
[1741960553730,0.011898,84041.0,84026.0,0.089501]
[1741960553944,0.0119,84033.0,84027.0,0.2383552]
[1741960554242,0.0119,84028.0,84027.0,0.0003382]
[1741960554652,0.0119,84031.0,84027.0,0.0003382]
[1741960555067,0.249909,84031.0,84027.0,0.2383562]
[1741960555283,0.23801,84030.0,84027.0,0.2383562]
[1741960555486,0.238013,84029.0,84027.0,0.0003382]
[1741960555678,0.0119,84028.0,84027.0,0.0023382]
[1741960555813,0.23801,84030.0,84027.0,0.0023382]
[1741960556032,0.0119,84028.0,84027.0,0.0003382]
[1741960556275,0.0119,84028.0,84027.0,0.0023382]
[1741960556838,0.0119,84028.0,84027.0,0.0009382]
[1741960557692,0.3119,84028.0,84027.0,0.0009382]
[1741960558036,0.011904,84002.0,83995.0,0.173025]
[1741960558239,0.011904,84002.0,83994.0,0.0825]
[1741960558452,0.011904,84005.0,83994.0,0.0825]
[1741960558453,0.238085,84004.0,84000.0,0.011904]
[1741960558578,0.238088,84003.0,83999.0,0.238096]
[1741960558815,0.238088,84003.0,83994.0,0.0825]
[1741960558816,0.011905,83995.0,83994.0,0.0825]
[1741960559215,0.250031,83990.0,83984.0,0.094107]
[1741960559416,0.011905,83993.0,83984.0,0.094107]
[1741960559417,0.250024,83992.0,83984.0,0.332245]
[1741960559595,0.011904,84002.0,83994.0,0.23811]
[1741960559800,0.1608,84021.0,83997.0,0.238102]
[1741960559801,0.238087,84003.0,83997.0,0.238102]
[1741960560091,0.238092,84001.0,83996.0,0.238106]
[1741960560200,0.01867322,83999.0,83997.0,0.238101]
[1741960560404,0.01867322,83999.0,83998.0,0.011905]
[1741960560612,0.22298352,84003.0,83997.0,0.238101]
[1741960560815,0.249962,84013.0,84004.0,0.011904]
[1741960561024,0.0119,84032.0,84024.0,0.011901]
[1741960561274,0.01867245,84013.0,84012.0,0.011903]
[1741960561555,0.238014,84029.0,84019.0,0.011902]
[1741960561779,0.01867014,84022.0,84018.0,0.011902]
[1741960561987,0.01867014,84022.0,84021.0,0.249936]
[1741960562199,0.237985,84039.0,84021.0,0.249936]
[1741960562200,0.238004,84033.0,84029.0,0.238012]
[1741960562406,0.01866851,84028.0,84025.0,0.238022]
[1741960562619,0.01866851,84028.0,84027.0,0.0119]
[1741960562980,0.002,84022.0,84019.0,0.16036]
[1741960563184,0.0015,84022.0,84019.0,0.3984]
[1741960563357,0.238035,84021.0,84019.0,0.15036]
[1741960563594,0.0015,84022.0,84019.0,0.15036]
[1741960563721,0.0015,84022.0,84020.0,0.199939]
[1741960563922,0.0015,84022.0,84021.0,0.011901]
[1741960564129,0.0015,84022.0,84020.0,0.21184]
[1741960564324,0.0015,84022.0,84021.0,0.011901]
[1741960564954,0.0015,84022.0,84017.0,0.238038]
[1741960565165,0.011901,84020.0,84014.0,0.083]
[1741960565360,0.011901,84020.0,83984.0,0.02926549]
[1741960565361,0.238089,84002.0,83991.0,0.0797]
[1741960565515,0.238083,84004.0,83998.0,0.011905]
[1741960565713,0.238084,84004.0,83998.0,0.011905]
[1741960565954,0.238084,84004.0,83999.0,0.011904]
[1741960566157,0.238083,84005.0,84000.0,0.238095]
[1741960566476,0.011904,84005.0,84001.0,0.238092]
[1741960566789,0.238081,84005.0,84000.0,0.011904]
[1741960567099,0.250009,83997.0,83992.0,0.238117]
[1741960567235,0.250003,83999.0,83991.0,0.011906]
[1741960567434,0.011904,84000.0,83990.0,0.011906]
[1741960567669,0.011904,84001.0,83996.0,0.011905]
[1741960567879,0.238087,84003.0,83997.0,0.011905]
[1741960568102,0.011904,84001.0,83994.0,0.238111]
[1741960568236,0.249999,84001.0,83994.0,0.238111]
[1741960568592,0.2381,83998.0,83991.0,0.013906]
[1741960568769,0.011905,83993.0,83991.0,0.002]
[1741960568973,0.011906,83988.0,83975.0,0.011908]
[1741960569177,0.011906,83988.0,83983.0,0.238143]
[1741960569380,0.250035,83989.0,83984.0,0.238139]
[1741960569584,0.011906,83986.0,83980.0,0.238151]
[1741960569789,0.238133,83987.0,83982.0,0.238145]
[1741960570001,0.250061,83979.0,83974.0,0.0003388]
[1741960570225,0.011906,83987.0,83975.0,0.011908]
[1741960570425,0.238164,83976.0,83974.0,0.0003388]
[1741960570632,0.011908,83975.0,83974.0,0.0003388]
[1741960570809,0.03634239,83976.0,83974.0,0.2385068]
[1741960571010,0.3,83984.0,83983.0,0.238143]
[1741960571176,0.3,83984.0,83983.0,0.25005]
[1741960571387,0.3,83984.0,83982.0,0.238145]
[1741960571579,0.3,83984.0,83978.0,0.250063]
[1741960571781,0.238165,83976.0,83972.0,0.238174]
[1741960571983,0.011907,83979.0,83974.0,0.2385068]
[1741960572241,0.250064,83979.0,83975.0,0.238164]
[1741960572459,0.238152,83980.0,83977.0,0.238158]
[1741960572621,0.01867843,83978.0,83977.0,0.238158]
[1741960572820,0.25683543,83978.0,83975.0,0.238164]
[1741960573458,0.25683543,83978.0,83974.0,0.2504148]
[1741960574821,0.011907,83979.0,83974.0,0.0003388]
[1741960575043,0.250072,83976.0,83975.0,0.002]
[1741960575244,0.011907,83983.0,83974.0,0.0122468]
[1741960575397,0.011907,83983.0,83974.0,0.0003388]
[1741960575398,0.23816,83977.0,83974.0,0.0003388]
[1741960575619,0.250052,83983.0,83977.0,0.002]
[1741960575765,0.011908,83976.0,83974.0,0.0003388]
[1741960575988,0.550074,83975.0,83974.0,0.0003388]
[1741960576187,0.550074,83975.0,83974.0,0.0023388]
[1741960576629,0.58641639,83975.0,83974.0,0.0003388]
[1741960577454,0.60595724,83975.0,83974.0,0.0003388]
[1741960577596,0.016908,83972.0,83971.0,6e-07]
[1741960577804,0.3,83956.0,83951.0,0.000462]
[1741960578013,0.3,83956.0,83917.0,0.15872]
[1741960578014,0.538256,83943.0,83934.0,0.238279]
[1741960578235,0.538256,83943.0,83934.0,0.23828]
[1741960578433,0.23827,83939.0,83930.0,0.011914]
[1741960578636,0.03060066,83943.0,83939.0,0.238268]
[1741960579016,0.01868866,83943.0,83939.0,0.011913]
[1741960579186,0.01868866,83943.0,83942.0,0.331671]
[1741960579399,0.01868866,83943.0,83942.0,0.332671]
[1741960579745,0.01868866,83943.0,83942.0,0.33965009]
[1741960581656,0.005,83992.0,83942.0,0.33965009]
[1741960581657,0.250053,83983.0,83971.0,0.011908]
[1741960581784,0.011908,83974.0,83969.0,0.238182]
[1741960581988,0.01868418,83970.0,83969.0,0.238182]
[1741960582596,0.01868418,83970.0,83969.0,0.250091]
[1741960583241,0.01868418,83970.0,83967.0,0.250096]
[1741960583242,0.01868418,83970.0,83968.0,0.238183]
[1741960583604,0.01868418,83970.0,83963.0,0.238199]
[1741960583813,0.01191,83959.0,83949.0,0.011911]
[1741960584065,0.238214,83958.0,83952.0,0.25014]
[1741960584255,0.238256,83943.0,83916.0,0.000339]
[1741960584437,0.011912,83942.0,83932.0,0.238288]
[1741960584640,0.15888,83960.0,83940.0,0.011913]
[1741960584641,0.011911,83949.0,83940.0,0.011913]
[1741960584885,0.238237,83950.0,83943.0,0.238254]
[1741960585056,0.250145,83951.0,83943.0,0.011912]
[1741960585266,0.011911,83955.0,83944.0,0.011912]
[1741960585463,0.238172,83973.0,83956.0,0.011911]
[1741960585814,0.238172,83973.0,83923.0,1.191563]
[1741960585815,0.011909,83965.0,83953.0,0.011911]
[1741960585955,0.238192,83966.0,83963.0,0.238199]
[1741960586157,0.3,83965.0,83962.0,0.238202]
[1741960586355,0.3,83965.0,83963.0,0.238197]
[1741960586612,0.3,83965.0,83959.0,0.25012]
[1741960586765,0.3,83965.0,83962.0,0.238201]
[1741960586967,0.01191,83963.0,83955.0,0.238222]
[1741960587170,0.011911,83950.0,83943.0,0.0756]
[1741960587376,0.011911,83955.0,83947.0,0.238243]
[1741960587581,0.3,83951.0,83948.0,0.00792934]
[1741960587783,0.25015,83949.0,83948.0,0.00792934]
[1741960588025,0.25015,83949.0,83944.0,0.238253]
[1741960588198,0.25015,83949.0,83938.0,0.011913]
[1741960588199,0.011912,83946.0,83932.0,0.011914]
[1741960588377,0.25016,83946.0,83942.0,0.238257]
[1741960588578,0.01868551,83948.0,83945.0,0.23825]
[1741960589113,0.01868551,83948.0,83939.0,0.011913]
[1741960589114,0.250186,83938.0,83931.0,0.011914]
[1741960589277,0.011913,83936.0,83926.0,0.011915]
[1741960589483,0.250174,83942.0,83929.0,0.011914]
[1741960589682,0.238262,83941.0,83934.0,0.011914]
[1741960589904,0.23825,83946.0,83941.0,0.238261]
[1741960590106,0.238228,83953.0,83949.0,0.238238]
[1741960590314,0.311911,83954.0,83949.0,0.238238]
[1741960590315,0.311909,83964.0,83952.0,0.011911]
[1741960590511,0.01868574,83950.0,83949.0,0.25015]
[1741960590731,0.01868574,83950.0,83949.0,0.238239]
[1741960590964,0.011911,83952.0,83940.0,0.011913]
[1741960591284,0.011912,83947.0,83935.0,0.011913]
[1741960591411,0.250154,83948.0,83941.0,0.01990038]
[1741960591615,0.238256,83943.0,83939.0,0.011913]
[1741960591820,0.01868539,83950.0,83942.0,0.00797909]
[1741960592025,0.238243,83948.0,83944.0,0.011912]
[1741960592231,0.238242,83948.0,83945.0,0.238249]
[1741960592428,0.238242,83948.0,83945.0,0.24620322]
[1741960592628,0.25015,83949.0,83946.0,0.238248]
[1741960592846,0.01868539,83950.0,83947.0,0.238245]
[1741960593029,0.01868539,83950.0,83948.0,0.238242]
[1741960593236,0.25692239,83950.0,83948.0,0.00792934]
[1741960593431,0.01868539,83950.0,83949.0,0.25015]
[1741960593677,0.01868539,83950.0,83949.0,0.25807105]
[1741960594983,0.01868539,83950.0,83949.0,0.24616005]
[1741960595331,0.26883339,83950.0,83949.0,0.00892105]